bitfinex-derivatives/quotes_SOLF0:USTF0_20250716
["timestamp","ask_amount","ask_price","bid_price","bid_amount"]
[1752658216357,5.9788,167.24,167.21,4.08245652]
[1752658217354,5.9784,167.25,167.21,4.08245652]
[1752658218251,5.9786,167.24,167.21,4.08245652]
[1752658220154,5.9802,167.2,167.15,5.9816]
[1752658220360,4.08245652,167.23,167.16,4.08245652]
[1752658220560,4.08245652,167.25,167.16,4.08245652]
[1752658220862,5.9802,167.2,167.15,5.9817]
[1752658221053,5.9802,167.2,167.17,4.08245652]
[1752658222257,11.9556,167.27,167.16,4.08245652]
[1752658222455,4.08245652,167.24,167.16,4.08245652]
[1752658223258,5.9811,167.18,167.16,4.08245652]
[1752658223658,5.982,167.15,167.12,4.08245652]
[1752658223859,4.08245652,167.2,167.12,4.08245652]
[1752658224362,5.982,167.15,167.12,4.08245652]
[1752658224556,4.08245652,167.2,167.11,4.08245652]
[1752658225259,4.08245652,167.2,167.1,5.9836]
[1752658225464,4.08245652,167.19,167.11,4.08245652]
[1752658226166,4.08245652,167.19,167.1,5.9836]
[1752658226365,5.982,167.15,167.12,4.08245652]
[1752658226668,4.08245652,167.19,167.12,4.08245652]
[1752658226864,5.9823,167.14,167.12,4.08245652]
[1752658227262,5.9823,167.14,167.11,4.08245652]
[1752658227464,4.08245652,167.19,167.01,516.86]
[1752658227465,4.08245652,167.15,167.01,516.86]
[1752658227664,4.08245652,167.15,167.08,4.08245652]
[1752658227958,5.9805,167.19,167.08,4.08245652]
[1752658227959,5.9831,167.12,167.08,4.08245652]
[1752658228565,5.9831,167.12,167.08,10.06665652]
[1752658228765,16.50954328,167.2,167.1,4.08245652]
[1752658229067,4.08245652,167.19,167.1,4.08245652]
[1752658229262,5.9821,167.15,167.1,10.06595652]
[1752658229468,4.08245652,167.19,167.1,4.08245652]
[1752658229865,16.50954328,167.22,167.1,4.08245652]
[1752658230066,4.08245652,167.2,167.08,4.08245652]
[1752658230269,4.08245652,167.16,167.08,4.08245652]
[1752658230470,16.50954328,167.13,167.08,5.984]
[1752658230671,16.50954328,167.13,167.09,4.08245652]
[1752658231072,16.50954328,167.15,167.11,4.08245652]
[1752658231366,4.08245652,167.19,167.11,4.08245652]
[1752658231367,16.50954328,167.14,167.11,4.08245652]
[1752658231668,16.50954328,167.14,167.1,4.08245652]
[1752658232174,16.50954328,167.14,167.1,10.06585652]
[1752658232669,16.50954328,167.14,167.12,10.06515652]
[1752658233068,16.50954328,167.15,167.12,10.06515652]
[1752658233374,16.50954328,167.15,167.12,5.9827]
[1752658233668,5.9815,167.16,167.12,5.9827]
[1752658233669,16.50954328,167.14,167.13,0.28073797]
[1752658233973,16.50954328,167.14,167.13,0.08978093]
[1752658234471,16.50954328,167.14,167.13,6.07228093]
[1752658234671,22.96199667,167.19,167.13,6.07228093]
[1752658234672,16.50954328,167.15,167.13,0.08978093]
[1752658235064,16.50954328,167.14,167.13,0.08978093]
[1752658235681,16.50954328,167.14,167.12,4.08245652]
[1752658235873,16.73285673,167.13,167.12,4.08245652]
[1752658236375,16.73285673,167.13,167.12,10.06535652]
[1752658236574,16.73282207,167.15,167.12,185.82491304]
[1752658236773,22.96199667,167.19,167.14,4.08245652]
[1752658236969,28.94149667,167.22,167.18,4.08245652]
[1752658237167,22.96199667,167.22,167.12,181.74245652]
[1752658237369,22.96199667,167.23,167.18,4.08245652]
[1752658238777,22.96199667,167.23,167.18,1.51632645]
[1752658238978,5.9799,167.21,167.18,1.51632645]
[1752658240880,5.9802,167.2,167.18,1.51632645]
[1752658242474,5.9804,167.19,167.18,1.51632645]
[1752658242683,4.08245652,167.23,167.15,4.08245652]
[1752658243077,22.96199667,167.22,167.15,4.08245652]
[1752658245782,16.73630244,167.18,167.15,4.08245652]
[1752658245984,22.71700244,167.18,167.15,4.08245652]
[1752658246178,16.73630244,167.18,167.15,4.08245652]
[1752658246379,16.73630244,167.19,167.15,4.08245652]
[1752658246683,16.73630244,167.18,167.15,4.08245652]
[1752658246881,16.73630244,167.18,167.15,1.53304596]
[1752658247283,5.98,167.2,167.15,7.51484596]
[1752658247980,5.9798,167.21,167.16,5.9814]
[1752658248186,5.9798,167.21,167.17,4.08245652]
[1752658248388,5.9798,167.21,167.14,177.62]
[1752658248685,5.9798,167.21,167.17,4.08245652]
[1752658248878,5.9794,167.22,167.17,4.08245652]
[1752658249078,22.96199667,167.23,167.17,4.08245652]
[1752658249586,28.94119667,167.23,167.19,5.9804]
[1752658250285,5.9792,167.23,167.19,5.9804]
[1752658251188,5.9795,167.22,167.18,10.06305652]
[1752658252284,5.9795,167.22,167.19,5.9803]
[1752658253591,5.9791,167.23,167.19,5.9803]
[1752658254188,5.9793,167.22,167.18,10.06305652]
[1752658254589,5.9793,167.22,167.19,4.08245652]
[1752658255392,5.9797,167.21,167.18,5.9806]
[1752658255588,5.9797,167.21,167.17,5.9809]
[1752658255789,5.9797,167.21,167.18,4.08245652]
[1752658256093,22.96199667,167.25,167.17,4.08245652]
[1752658256294,22.96199667,167.23,167.17,4.08245652]
[1752658257493,5.9806,167.19,167.17,4.08245652]
[1752658259195,5.9801,167.2,167.17,4.08245652]
[1752658260094,5.9801,167.2,167.17,10.06355652]
[1752658260394,5.9801,167.2,167.17,4.08245652]
[1752658261089,22.96199667,167.26,167.19,4.08245652]
[1752658261295,22.96199667,167.26,167.22,4.08245652]
[1752658261494,22.96199667,167.28,167.22,4.08245652]
[1752658262397,5.9784,167.25,167.22,4.08245652]
[1752658262598,22.96199667,167.28,167.22,4.08245652]
[1752658262990,22.96199667,167.28,167.15,177.54]
[1752658263292,4.08245652,167.26,167.16,177.5]
[1752658263491,27.04445319,167.24,167.15,4.08245652]
[1752658263698,5.9809,167.18,167.15,4.08245652]
[1752658264700,5.9811,167.17,167.14,181.58245652]
[1752658266804,5.9809,167.18,167.14,181.58245652]
[1752658267101,22.96199667,167.22,167.16,4.08245652]
[1752658267302,5.9798,167.21,167.16,4.08245652]
[1752658268197,4.08245652,167.23,167.14,177.5]
[1752658268503,27.04445319,167.23,167.14,181.58245652]
[1752658268700,5.9813,167.17,167.14,181.58245652]
[1752658269196,5.9816,167.16,167.14,177.5]
[1752658270300,5.9812,167.17,167.14,177.5]
[1752658273008,5.9809,167.18,167.14,183.4821]
[1752658273309,5.9809,167.18,167.14,177.5]
[1752658273607,5.9809,167.18,167.14,183.4821]
[1752658273811,22.96199667,167.2,167.15,4.08245652]
[1752658274004,22.96199667,167.2,167.17,4.08245652]
[1752658274307,28.94169667,167.21,167.18,174.91471919]
[1752658274607,22.96199667,167.21,167.2,5.9796]
[1752658274910,22.96199667,167.22,167.19,4.08245652]
[1752658275110,22.96199667,167.22,167.21,4.08245652]
[1752658275304,36.8853089,167.29,167.21,4.08245652]
[1752658275305,32.80285238,167.29,167.21,4.08245652]
[1752658275505,32.80285238,167.29,167.25,4.08245652]
[1752658275810,32.80285238,167.31,167.25,4.08245652]
[1752658276509,4.08245652,167.33,167.25,4.08245652]
[1752658276710,37.32761238,167.34,167.29,4.08245652]
[1752658277411,37.32761238,167.34,167.27,177.46]
[1752658277412,4.52476,167.34,167.31,4.08245652]
[1752658278514,4.52476,167.34,167.33,4.08245652]
[1752658280815,4.52476,167.34,167.33,1.70172093]
[1752658281510,10.49926,167.34,167.33,1.70172093]
[1752658282016,5.9757,167.31,167.3,4.08245652]
[1752658282221,5.9757,167.31,167.28,4.08245652]
[1752658282615,4.52476,167.34,167.28,4.08245652]
[1752658283620,8.60721652,167.34,167.26,4.08245652]
[1752658283918,4.08245652,167.32,167.24,181.44245652]
[1752658284417,5.9769,167.28,167.24,181.44245652]
[1752658285012,5.9769,167.28,167.24,187.42055652]
[1752658285410,4.52476,167.34,167.26,4.08245652]
[1752658285411,5.9765,167.29,167.26,4.08245652]
[1752658286215,4.52476,167.34,167.26,4.08245652]
[1752658287309,4.08245652,167.33,167.25,4.08245652]
[1752658287821,5.9759,167.31,167.25,10.05995652]
[1752658288016,5.9759,167.31,167.27,4.08245652]
[1752658288512,5.9764,167.29,167.26,4.08245652]
[1752658288711,4.52476,167.34,167.26,4.08245652]
[1752658288910,4.52476,167.34,167.28,4.08245652]
[1752658289417,5.9756,167.32,167.28,4.08245652]
[1752658291612,4.52476,167.34,167.27,177.28]
[1752658291613,5.9758,167.31,167.27,177.28]
[1752658291818,5.9758,167.31,167.27,181.36245652]
[1752658292315,5.9754,167.32,167.27,187.33935652]
[1752658292722,5.9757,167.31,167.27,187.33935652]
[1752658293122,4.52476,167.34,167.27,187.33935652]
[1752658293322,5.9755,167.32,167.28,5.9767]
[1752658293817,5.9751,167.33,167.28,5.9767]
[1752658294721,4.52476,167.34,167.29,4.08245652]
[1752658294920,4.52476,167.34,167.31,4.08245652]
[1752658295425,4.52476,167.34,167.31,10.05805652]
[1752658295819,4.52476,167.34,167.31,4.08245652]
[1752658296020,10.49936,167.34,167.31,4.08245652]
[1752658296214,4.52476,167.34,167.31,4.08245652]
[1752658296518,4.52476,167.34,167.31,10.05785652]
[1752658297420,4.52476,167.34,167.31,4.08245652]
[1752658297823,4.52476,167.34,167.33,4.08245652]
[1752658298419,135.74195939,167.44,167.33,187.30245652]
[1752658298621,135.74195939,167.44,167.38,4.08245652]
[1752658299824,139.82441591,167.44,167.36,181.30245652]
[1752658300023,5.973,167.39,167.36,181.30245652]
[1752658300221,139.82441591,167.44,167.36,181.30245652]
[1752658300417,5.9719,167.42,167.36,181.30245652]
[1752658300617,4.08245652,167.42,167.36,4.08245652]
[1752658301025,5.9736,167.37,167.33,5.9749]
[1752658301329,4.08245652,167.42,167.33,4.08245652]
[1752658301717,4.08245652,167.42,167.33,10.05715652]
[1752658301718,5.9734,167.38,167.33,10.05715652]
[1752658302122,5.9736,167.37,167.33,10.05715652]
[1752658302719,4.08245652,167.42,167.35,4.08245652]
[1752658303423,5.973,167.39,167.35,10.05665652]
[1752658303627,139.82441591,167.44,167.35,10.05665652]
[1752658303929,139.82441591,167.44,167.35,4.08245652]
[1752658304430,5.9727,167.4,167.35,10.05655652]
[1752658305530,5.9728,167.39,167.35,10.05655652]
[1752658306330,139.82441591,167.44,167.31,177.2]
[1752658306630,139.82441591,167.44,167.36,4.08245652]
[1752658307128,135.74195939,167.44,167.36,4.08245652]
[1752658307323,5.9734,167.38,167.36,4.08245652]
[1752658307529,4.08245652,167.43,167.36,4.08245652]
[1752658307731,4.08245652,167.41,167.34,4.08245652]
[1752658308124,5.9741,167.36,167.34,4.08245652]
[1752658308324,5.9741,167.36,167.32,5.9752]
[1752658308325,5.9741,167.36,167.33,4.08245652]
[1752658308528,4.08245652,167.41,167.33,4.08245652]
[1752658309633,5.9741,167.36,167.33,10.05735652]
[1752658310236,4.08245652,167.41,167.33,10.05735652]
[1752658310237,5.9737,167.37,167.33,10.05735652]
[1752658312634,4.08245652,167.41,167.33,4.08245652]
[1752658313131,5.9738,167.37,167.33,10.05715652]
[1752658313329,4.08245652,167.41,167.32,4.08245652]
[1752658313627,4.08245652,167.39,167.32,4.08245652]
[1752658313833,5.9745,167.35,167.32,4.08245652]
[1752658314031,4.08245652,167.4,167.32,4.08245652]
[1752658314433,5.9736,167.37,167.33,5.9747]
[1752658314835,4.08245652,167.45,167.36,10.05615652]
[1752658315034,4.08245652,167.45,167.38,4.08245652]
[1752658315536,5.9724,167.41,167.38,4.08245652]
[1752658316533,5.9719,167.42,167.38,10.05555652]
[1752658316735,4.08245652,167.46,167.38,4.08245652]
[1752658317137,5.9717,167.43,167.38,10.05545652]
[1752658317840,5.9717,167.42,167.38,10.05545652]
[1752658318037,4.08245652,167.49,167.4,4.08245652]
[1752658318433,5.9707,167.45,167.42,4.08245652]
[1752658320433,4.08245652,167.49,167.42,4.08245652]
[1752658321434,5.9709,167.45,167.42,4.08245652]
[1752658321634,136.77439272,167.5,167.41,4.08245652]
[1752658321838,140.85684924,167.5,167.43,4.08245652]
[1752658322434,5.971,167.44,167.43,4.08245652]
[1752658322841,4.08245652,167.48,167.41,4.08245652]
[1752658323044,5.9721,167.41,167.39,4.08245652]
[1752658323244,4.08245652,167.46,167.39,4.08245652]
[1752658323838,5.972,167.42,167.39,4.08245652]
[1752658324035,4.08245652,167.47,167.39,4.08245652]
[1752658324444,5.9716,167.43,167.39,10.05495652]
[1752658325044,5.9717,167.42,167.39,4.08245652]
[1752658325245,4.08245652,167.47,167.39,4.08245652]
[1752658325544,4.08245652,167.48,167.39,4.08245652]
[1752658325740,5.9716,167.43,167.39,10.05505652]
[1752658326543,4.08245652,167.48,167.4,5.9724]
[1752658326743,4.08245652,167.48,167.41,4.08245652]
[1752658327939,4.08245652,167.49,167.41,4.08245652]
[1752658328847,5.9705,167.46,167.41,10.05435652]
[1752658329843,5.9705,167.46,167.41,5.9719]
[1752658330050,5.9705,167.46,167.42,4.08245652]
[1752658330939,5.9705,167.46,167.42,10.05415652]
[1752658331143,5.9701,167.47,167.42,10.05415652]
[1752658331343,4.08245652,167.49,167.42,10.05415652]
[1752658331746,5.97,167.47,167.42,10.05415652]
[1752658332951,5.9698,167.48,167.43,5.9712]
[1752658333254,136.77439272,167.5,167.43,5.9712]
[1752658333647,136.77439272,167.5,167.42,4.08245652]
[1752658334048,140.85684924,167.5,167.42,4.08245652]
[1752658334248,140.85684924,167.5,167.43,5.9712]
[1752658334249,5.9697,167.48,167.43,5.9712]
[1752658334552,140.85684924,167.5,167.43,5.9712]
[1752658334750,5.9696,167.48,167.43,5.9712]
[1752658335147,5.9696,167.48,167.44,5.971]
[1752658335353,5.9694,167.49,167.44,5.971]
[1752658335655,5.9694,167.49,167.44,4.08245652]
[1752658335849,5.9694,167.49,167.45,5.9707]
[1752658336050,136.77439272,167.5,167.44,4.08245652]
[1752658336555,5.9697,167.48,167.44,10.05345652]
[1752658336754,136.77439272,167.5,167.44,10.05345652]
[1752658337260,136.77439272,167.5,167.44,10.05365652]
[1752658337557,136.77439272,167.5,167.44,4.08245652]
[1752658337759,5.9703,167.48,167.44,10.05365652]
[1752658338454,4.08245652,167.51,167.45,5.9708]
[1752658338455,5.9697,167.49,167.45,5.9708]
[1752658340458,5.9694,167.5,167.46,5.9706]
[1752658340661,4.08245652,167.51,167.46,5.9706]
[1752658341051,5.9697,167.49,167.45,5.9709]
[1752658341261,5.9697,167.49,167.44,4.08245652]
[1752658341859,5.9695,167.5,167.44,4.08245652]
[1752658342462,5.9695,167.5,167.46,5.9704]
[1752658342862,5.9697,167.49,167.44,4.08245652]
[1752658343359,5.9697,167.49,167.45,5.9709]
[1752658343763,4.08245652,167.51,167.37,528.1074]
[1752658343959,4.08245652,167.49,167.41,4.08245652]
[1752658344464,5.9705,167.47,167.43,5.9716]
[1752658344764,4.08245652,167.49,167.41,4.08245652]
[1752658345261,4.08245652,167.51,167.43,4.08245652]
[1752658345462,5.9704,167.47,167.43,10.05395652]
[1752658345662,5.9704,167.47,167.43,4.08245652]
[1752658345863,4.08245652,167.51,167.43,4.08245652]
[1752658346164,5.9699,167.49,167.45,5.971]
[1752658346354,4.08245652,167.51,167.43,4.08245652]
[1752658347362,4.08245652,167.52,167.43,4.08245652]
[1752658347564,4.08245652,167.52,167.45,4.08245652]
[1752658347766,5.9695,167.5,167.46,5.9707]
[1752658348568,4.08245652,167.51,167.38,176.84]
[1752658348763,4.08245652,167.51,167.43,4.08245652]
[1752658348963,5.9705,167.47,167.44,5.9713]
[1752658349162,5.9705,167.47,167.43,4.08245652]
[1752658350262,5.9705,167.47,167.44,5.9714]
[1752658350770,5.9705,167.47,167.43,10.05405652]
[1752658351268,5.9705,167.47,167.43,4.08245652]
[1752658352167,4.08245652,167.49,167.37,516.16]
[1752658352467,23.32755034,167.51,167.39,5.973]
[1752658352468,4.08284019,167.47,167.39,5.973]
[1752658352667,5.9717,167.44,167.38,180.86284019]
[1752658353171,4.08284019,167.47,167.38,180.86284019]
[1752658353671,5.9718,167.43,167.38,180.86284019]
[1752658353870,5.9718,167.43,167.39,4.08310232]
[1752658354172,4.08310232,167.47,167.39,10.05610232]
[1752658354371,5.9716,167.44,167.39,4.08310232]
[1752658354670,4.08310232,167.47,167.39,4.08310232]
[1752658354872,4.08310232,167.47,167.39,10.05620232]
[1752658355067,4.08310232,167.47,167.39,4.08310232]
[1752658355465,5.9716,167.44,167.4,5.9728]
[1752658355672,5.9716,167.44,167.39,4.08310232]
[1752658356073,4.08310232,167.47,167.38,182.7533]
[1752658356274,27.41065266,167.47,167.39,4.08310232]
[1752658356471,5.9714,167.44,167.39,4.08310232]
[1752658357075,5.9714,167.44,167.4,5.9728]
[1752658357373,5.9714,167.44,167.39,4.08310232]
[1752658358173,5.9714,167.44,167.39,10.05600232]
[1752658358570,4.08310232,167.47,167.38,180.86310232]
[1752658358779,4.08310232,167.43,167.37,516.16]
[1752658358981,4.08310232,167.44,167.37,692.92]
[1752658359369,4.08310232,167.44,167.37,698.8937]
[1752658359875,5.9725,167.42,167.38,5.9735]
[1752658360578,5.9725,167.41,167.38,5.9735]
[1752658360770,5.9725,167.41,167.37,698.8938]
[1752658361175,4.08310232,167.44,167.37,692.92]
[1752658361679,5.9728,167.41,167.37,692.92]
[1752658362779,5.9728,167.41,167.37,698.8937]
[1752658363281,5.9728,167.41,167.38,176.74]
[1752658364179,5.9723,167.42,167.38,176.74]
[1752658364477,4.08310232,167.44,167.38,176.74]
[1752658364878,4.08310232,167.44,167.38,182.7135]
[1752658365183,5.9725,167.41,167.38,182.7135]
[1752658365381,5.9725,167.41,167.38,176.74]
[1752658366279,5.9729,167.4,167.37,516.16]
[1752658366482,4.08310232,167.44,167.38,176.74]
[1752658367382,5.9723,167.42,167.38,182.7134]
[1752658368283,4.08310232,167.47,167.38,180.82310232]
[1752658368585,4.08310232,167.47,167.4,4.08310232]
[1752658368782,27.41065266,167.47,167.41,176.72]
[1752658368981,23.32755034,167.47,167.41,176.72]
[1752658369180,146.94841232,167.49,167.41,176.72]
[1752658369181,27.41065266,167.48,167.41,176.72]
[1752658369382,5.9709,167.46,167.41,176.72]
[1752658369582,27.41065266,167.48,167.41,176.72]
[1752658370184,5.9713,167.45,167.41,182.6923]
[1752658371084,5.9713,167.45,167.41,176.72]
[1752658373781,5.9713,167.45,167.4,10.05580232]
[1752658374087,23.32755034,167.45,167.41,176.7]
[1752658374482,5.9717,167.44,167.41,176.7]
[1752658374681,5.9717,167.44,167.41,169.23010133]
[1752658375087,5.9718,167.43,167.41,169.23010133]
[1752658375385,23.32755034,167.46,167.41,169.23010133]
[1752658376084,5.9716,167.44,167.41,169.23010133]
[1752658376984,5.9714,167.45,167.41,169.23010133]
[1752658378180,23.32755034,167.47,167.41,175.20260133]
[1752658378486,5.9709,167.46,167.41,169.23010133]
[1752658378689,5.9709,167.46,167.41,175.20240133]
[1752658378987,5.9709,167.46,167.41,179.28550365]
[1752658379182,5.9711,167.45,167.41,169.23010133]
[1752658379383,23.32755034,167.48,167.41,169.23010133]
[1752658379584,5.9709,167.46,167.41,169.23010133]
[1752658379884,5.9709,167.46,167.41,175.20240133]
[1752658380186,23.32755034,167.48,167.41,169.23010133]
[1752658380486,23.32755034,167.47,167.42,176.64]
[1752658380886,23.32755034,167.48,167.42,176.64]
[1752658381279,5.9711,167.45,167.42,176.64]
[1752658382487,5.9711,167.45,167.41,5.9723]
[1752658382689,5.9715,167.44,167.42,176.6]
[1752658382990,23.32755034,167.47,167.42,176.6]
[1752658383589,5.9713,167.45,167.42,176.6]
[1752658384291,5.9715,167.44,167.42,176.6]
[1752658384481,23.32755034,167.48,167.42,180.68310232]
[1752658384687,23.32755034,167.48,167.44,4.08310232]
[1752658385288,23.32755034,167.49,167.44,4.08310232]
[1752658385689,5.9702,167.48,167.44,4.08310232]
[1752658385890,23.32755034,167.49,167.44,4.08310232]
[1752658386292,23.32755034,167.49,167.37,516.16]
[1752658386594,4.08310232,167.48,167.4,4.08310232]
[1752658386888,4.08310232,167.48,167.38,176.58]
[1752658386889,23.32755034,167.48,167.42,4.08310232]
[1752658387092,23.32755034,167.48,167.43,176.56]
[1752658387289,23.32755034,167.47,167.43,176.56]
[1752658387695,5.9712,167.45,167.43,176.56]
[1752658389399,23.32755034,167.48,167.37,516.16]
[1752658389601,23.32755034,167.47,167.41,4.08310232]
[1752658389794,23.32755034,167.47,167.42,176.54]
[1752658390101,23.32755034,167.49,167.42,176.54]
[1752658390302,5.9709,167.46,167.42,182.5119]
[1752658391004,5.9711,167.45,167.42,176.54]
[1752658391203,23.32755034,167.49,167.42,176.54]
[1752658391699,5.9705,167.47,167.42,186.59520232]
[1752658392103,5.9705,167.47,167.43,5.9717]
[1752658392304,23.32755034,167.49,167.43,5.9717]
[1752658393007,5.9706,167.47,167.43,5.9717]
[1752658393707,23.32755034,167.49,167.43,5.9717]
[1752658394507,5.9706,167.47,167.43,5.9717]
[1752658394704,23.32755034,167.49,167.42,186.59510232]
[1752658394899,23.32755034,167.48,167.42,176.54]
[1752658395206,5.9711,167.45,167.42,180.62310232]
[1752658395406,5.9711,167.45,167.42,186.59520232]
[1752658396511,5.9711,167.45,167.42,180.62310232]
[1752658396815,5.9708,167.46,167.42,180.62310232]
[1752658397014,23.32755034,167.48,167.42,180.62310232]
[1752658397310,5.971,167.46,167.42,186.59520232]
[1752658397510,23.32755034,167.48,167.42,180.62310232]
[1752658397910,23.32755034,167.48,167.42,182.5121]
[1752658398106,23.32755034,167.48,167.42,180.62310232]
[1752658398504,5.9707,167.47,167.43,5.9716]
[1752658398910,23.32755034,167.49,167.42,180.62310232]
[1752658400012,23.32755034,167.49,167.44,4.08310232]
[1752658400215,23.32755034,167.5,167.44,4.08310232]
[1752658400512,5.9706,167.47,167.44,4.08310232]
[1752658401114,5.9701,167.48,167.44,10.05430232]
[1752658403920,5.9701,167.48,167.45,5.9711]
[1752658404218,5.9705,167.47,167.43,4.08310232]
[1752658404619,23.32755034,167.5,167.43,10.05470232]
[1752658405313,5.9708,167.46,167.43,4.08310232]
[1752658405515,4.08310232,167.49,167.42,176.42]
[1752658405717,27.41065266,167.49,167.42,176.42]
[1752658406316,27.41065266,167.49,167.42,182.3921]
[1752658408522,5.9712,167.45,167.42,182.3921]
[1752658408721,27.41065266,167.49,167.43,5.9718]
[1752658409219,5.9711,167.45,167.42,176.42]
[1752658409418,27.41065266,167.49,167.42,176.42]
[1752658409825,5.9713,167.45,167.42,182.392]
[1752658411019,23.32755034,167.48,167.42,176.42]
[1752658411415,23.32755034,167.46,167.42,176.42]
[1752658411622,5.9716,167.44,167.42,176.42]
[1752658412020,23.32755034,167.47,167.39,4.08310232]
[1752658412220,5.9713,167.45,167.42,5.9719]
[1752658412923,5.9713,167.45,167.41,182.3323]
[1752658413222,5.9713,167.45,167.41,186.41540232]
[1752658417131,5.9713,167.45,167.42,5.9721]
[1752658417430,5.9713,167.45,167.42,2.43235059]
[1752658417631,5.9713,167.45,167.41,180.44310232]
[1752658417830,5.9713,167.45,167.41,186.41550232]
[1752658419331,5.9715,167.44,167.41,186.41550232]
[1752658419730,4.08310232,167.49,167.43,4.08310232]
[1752658419731,23.32755034,167.49,167.43,4.08310232]
[1752658419930,29.29725034,167.49,167.45,4.08310232]
[1752658420130,23.32755034,167.49,167.46,176.3]
[1752658420328,4.08310232,167.5,167.37,516.16]
[1752658420528,23.32755034,167.51,167.42,4.08310232]
[1752658420730,27.41065266,167.51,167.43,176.28]
[1752658420928,5.9706,167.47,167.45,2.61199314]
[1752658421327,23.32755034,167.49,167.45,2.61199314]
[1752658421733,5.9706,167.47,167.45,2.61199314]
[1752658422231,5.9707,167.46,167.45,2.61199314]
[1752658422431,5.9707,167.46,167.44,2.61199314]
[1752658422832,5.9707,167.46,167.43,182.2517]
[1752658423035,5.9707,167.46,167.44,2.61199314]
[1752658423531,5.9711,167.45,167.44,2.61199314]
[1752658424433,23.32755034,167.49,167.44,2.61199314]
[1752658424734,25.93954348,167.49,167.44,2.61199314]
[1752658425031,5.9708,167.46,167.44,2.61199314]
[1752658427034,5.9711,167.45,167.44,2.61199314]
[1752658427331,5.9711,167.45,167.43,182.2516]
[1752658427332,2.61199314,167.45,167.43,171.4232713]
[1752658427526,5.972,167.43,167.41,2.61199314]
[1752658427724,25.93954348,167.46,167.41,8.58429314]
[1752658428135,5.972,167.43,167.41,2.61199314]
[1752658428332,25.93954348,167.46,167.41,2.61199314]
[1752658428333,23.32755034,167.46,167.41,2.61199314]
[1752658428531,23.32755034,167.46,167.43,2.61199314]
[1752658428733,5.9714,167.45,167.43,2.61199314]
[1752658429034,25.93954348,167.47,167.43,0.89554027]
[1752658429729,5.9715,167.44,167.43,0.89554027]
[1752658430635,23.32755034,167.45,167.35,516.06]
[1752658430837,23.32755034,167.45,167.36,176.2]
[1752658431134,23.32755034,167.49,167.46,5.9707]
[1752658431434,23.32755034,167.5,167.48,2.61324373]
[1752658432031,23.32755034,167.5,167.35,516.06]
[1752658432032,23.32755034,167.5,167.43,5.9718]
[1752658432331,23.32755034,167.5,167.44,176.2]
[1752658432633,5.97,167.48,167.47,2.61324373]
[1752658432934,23.32755034,167.5,167.45,4.08039474]
[1752658433135,5.9708,167.46,167.45,4.08039474]
[1752658433434,23.32755034,167.5,167.41,5.9725]
[1752658433635,23.32755034,167.5,167.43,4.08039474]
[1752658434534,23.32755034,167.5,167.43,10.05219474]
[1752658434733,23.32755034,167.49,167.43,4.08039474]
[1752658435036,5.9708,167.46,167.43,4.08039474]
[1752658435230,5.9708,167.46,167.43,10.05209474]
[1752658435431,5.9708,167.46,167.41,176.18]
[1752658435432,23.32755034,167.51,167.45,4.08039474]
[1752658435732,23.32755034,167.51,167.47,4.08039474]
[1752658435936,23.32755034,167.52,167.41,176.18]
[1752658436132,23.32755034,167.52,167.46,4.08039474]
[1752658436534,5.9701,167.48,167.42,176.16]
[1752658436735,23.32755034,167.51,167.43,176.16]
[1752658437237,5.9705,167.47,167.45,4.08039474]
[1752658437437,23.32755034,167.49,167.45,1.7967209]
[1752658437637,5.9713,167.45,167.43,4.08039474]
[1752658437836,23.32755034,167.48,167.43,4.08039474]
[1752658438038,23.32755034,167.48,167.43,10.05219474]
[1752658438338,5.9709,167.46,167.43,10.05219474]
[1752658438736,5.9706,167.47,167.43,10.05219474]
[1752658439943,5.9708,167.46,167.43,4.08039474]
[1752658440138,23.32755034,167.48,167.43,4.08039474]
[1752658440437,5.9714,167.45,167.43,4.08039474]
[1752658440638,23.32755034,167.48,167.41,4.08039474]
[1752658441035,23.32755034,167.47,167.43,4.08039474]
[1752658441235,23.32755034,167.47,167.43,1.71404149]
[1752658441738,5.9715,167.44,167.43,1.71404149]
[1752658441937,23.32755034,167.47,167.39,176.14]
[1752658442137,23.32755034,167.47,167.39,180.20039474]
[1752658442439,5.9721,167.43,167.39,186.17359474]
[1752658443038,23.32755034,167.43,167.38,180.20039474]
[1752658443233,23.32755034,167.43,167.38,180.20395255]
[1752658443540,5.9722,167.42,167.38,186.17735255]